bitfinex-derivatives/quotes_BTCF0:USTF0_20250729
["timestamp","ask_amount","ask_price","bid_price","bid_amount"]
[1753819775343,0.5095591,117300.0,117290.0,1.2141536]
[1753819777046,0.5095591,117300.0,117290.0,0.5177936]
[1753819777246,0.5095591,117300.0,117290.0,1.2141136]
[1753819781644,0.2969891,117300.0,117290.0,0.002]
[1753819781850,0.93492128,117300.0,117290.0,0.14321]
[1753819782442,0.5095591,117300.0,117290.0,0.14321]
[1753819782637,0.93492128,117300.0,117290.0,0.14321]
[1753819783345,0.93492128,117300.0,117290.0,0.002]
[1753819785951,0.356168,117280.0,117270.0,0.25876]
[1753819786149,0.510858,117280.0,117270.0,0.25876]
[1753819786548,0.510858,117280.0,117270.0,0.33881]
[1753819786744,0.510858,117280.0,117270.0,0.5093826]
[1753819787152,0.510858,117280.0,117270.0,0.33881]
[1753819787345,0.510858,117280.0,117270.0,0.5123828]
[1753819788049,0.510858,117280.0,117270.0,0.5153828]
[1753819789652,0.510858,117280.0,117270.0,0.34481]
[1753819789953,0.510858,117280.0,117270.0,0.5153828]
[1753819791145,0.1705728,117270.0,117260.0,4e-05]
[1753819791345,0.5108728,117270.0,117260.0,0.21495]
[1753819791651,0.5108728,117270.0,117260.0,0.32959]
[1753819792261,0.5108728,117270.0,117260.0,1.02587]
[1753819792554,0.6001355,117270.0,117260.0,0.05118]
[1753819792757,0.6001355,117270.0,117260.0,0.13323]
[1753819793055,0.6001355,117270.0,117260.0,0.08409]
[1753819793357,0.6001355,117270.0,117260.0,0.13719]
[1753819793954,0.6021355,117270.0,117260.0,0.13519]
[1753819794455,0.58145753,117270.0,117260.0,0.13519]
[1753819796359,0.58145753,117270.0,117260.0,0.21495]
[1753819796559,0.58145753,117270.0,117260.0,0.28334]
[1753819797252,0.58145753,117270.0,117260.0,0.13519]
[1753819797951,0.88418685,117270.0,117260.0,0.13519]
[1753819798662,0.88418685,117270.0,117260.0,4e-05]
[1753819798961,0.58145753,117270.0,117260.0,4e-05]
[1753819799159,0.88418685,117270.0,117260.0,4e-05]
[1753819801260,1.58046685,117270.0,117260.0,4e-05]
[1753819801456,1.60102048,117270.0,117260.0,4e-05]
[1753819802360,1.60602048,117270.0,117260.0,4e-05]
[1753819803252,0.5109018,117250.0,117240.0,0.28334]
[1753819803456,0.81363112,117250.0,117240.0,0.13519]
[1753819803957,0.82228557,117250.0,117240.0,0.13519]
[1753819804650,0.82228557,117250.0,117240.0,4e-05]
[1753819804854,0.84281431,117250.0,117240.0,4e-05]
[1753819805057,1.23632499,117250.0,117240.0,4e-05]
[1753819805262,0.5109164,117240.0,117230.0,1e-07]
[1753819805564,0.5314365,117240.0,117230.0,1e-07]
[1753819805862,0.81364572,117240.0,117230.0,1e-07]
[1753819806054,0.69337572,117240.0,117230.0,0.2149101]
[1753819806255,0.69337572,117240.0,117230.0,0.2833001]
[1753819806454,0.60912572,117240.0,117230.0,1e-07]
[1753819806662,0.61112572,117240.0,117230.0,1e-07]
[1753819806860,0.3083964,117240.0,117230.0,1e-07]
[1753819807162,0.61112572,117240.0,117230.0,1e-07]
[1753819807765,0.93434019,117240.0,117230.0,1e-07]
[1753819807965,0.63161087,117240.0,117230.0,1e-07]
[1753819808261,0.63461087,117240.0,117230.0,1e-07]
[1753819808957,0.33188155,117240.0,117230.0,1e-07]
[1753819809152,0.02548515,117240.0,117230.0,0.75666022]
[1753819809357,0.1756163,117240.0,117230.0,1.50883022]
[1753819809557,0.00849937,117260.0,117250.0,0.5001517]
[1753819809764,0.2963426,117270.0,117260.0,0.5001372]
[1753819809956,0.2963426,117270.0,117260.0,1.2127372]
[1753819810157,0.2963426,117270.0,117260.0,1.34487932]
[1753819810357,0.51940685,117270.0,117260.0,1.34523932]
[1753819810558,0.57924685,117270.0,117260.0,1.51582642]
[1753819810757,0.28877685,117270.0,117260.0,1.63866231]
[1753819810952,0.06837425,117270.0,117260.0,1.63866231]
[1753819811156,0.2974225,117300.0,117290.0,0.1705434]
[1753819811364,0.1705434,117290.0,117280.0,0.5427375]
[1753819811560,0.1705434,117290.0,117280.0,1.2561775]
[1753819811760,0.1705434,117290.0,117280.0,1.04299]
[1753819811963,0.2203734,117290.0,117280.0,0.32955]
[1753819812266,0.1705872,117260.0,117250.0,1.4308071]
[1753819812561,0.1705872,117260.0,117250.0,2.61602231]
[1753819812761,0.1705872,117260.0,117250.0,2.68441231]
[1753819813159,0.1705872,117260.0,117250.0,1.97101231]
[1753819813462,0.1705872,117260.0,117250.0,2.68417231]
[1753819813773,0.1705872,117260.0,117250.0,2.68717231]
[1753819813961,0.5363354,117270.0,117260.0,0.13486]
[1753819814160,0.5363354,117270.0,117260.0,0.3429]
[1753819814566,0.5363354,117270.0,117260.0,1.05602]
[1753819815061,0.5931654,117270.0,117260.0,0.29356]
[1753819815258,0.5059271,117260.0,117250.0,1.89472]
[1753819815464,0.5059271,117260.0,117250.0,2.10276]
[1753819816061,0.5059271,117260.0,117250.0,1.266]
[1753819816262,0.93149231,117260.0,117250.0,0.002]
[1753819816670,0.93249231,117260.0,117250.0,0.002]
[1753819817364,0.5059563,117240.0,117230.0,0.3464101]
[1753819817561,0.5059563,117240.0,117230.0,1.0596501]
[1753819817962,0.57335839,117240.0,117230.0,1.0597701]
[1753819818771,0.57335839,117240.0,117230.0,1.0607701]
[1753819819166,0.57335839,117240.0,117230.0,1.0617701]
[1753819821673,0.57335839,117240.0,117230.0,1.232401]
[1753819821975,0.57335839,117240.0,117230.0,1.0617701]
[1753819823775,0.57335839,117240.0,117230.0,0.9375701]
[1753819823981,0.57274839,117240.0,117230.0,1.0124301]
[1753819824373,0.57274839,117240.0,117230.0,1.0617701]
[1753819824574,0.57274839,117240.0,117230.0,0.3484101]
[1753819824876,0.57274839,117240.0,117230.0,1.0610501]
[1753819825075,0.36456839,117240.0,117230.0,1.65724611]
[1753819825376,0.36456839,117240.0,117230.0,1.2316809]
[1753819825576,0.51591839,117240.0,117230.0,1.0610501]
[1753819825980,0.51591839,117240.0,117230.0,1.2316809]
[1753819826279,0.36456839,117240.0,117230.0,1.2316809]
[1753819826880,0.36456839,117240.0,117230.0,1.65724611]
[1753819827979,0.43434839,117240.0,117230.0,1.65724611]
[1753819828276,0.43434839,117240.0,117230.0,1.65852611]
[1753819828877,0.23801839,117240.0,117230.0,1.65852611]
[1753819829478,0.23801839,117240.0,117230.0,1.2329609]
[1753819829678,0.23801839,117240.0,117230.0,1.65852611]
[1753819830678,0.28791839,117240.0,117230.0,1.65852611]
[1753819832176,0.23801839,117240.0,117230.0,1.65852611]
[1753819832375,0.23801839,117240.0,117230.0,1.2329609]
[1753819832577,0.23801839,117240.0,117230.0,1.65852611]
[1753819832776,0.28791839,117240.0,117230.0,1.65852611]
[1753819832976,0.28791839,117240.0,117230.0,0.94460611]
[1753819833280,0.51591839,117240.0,117230.0,1.2314409]
[1753819833676,0.57274839,117240.0,117230.0,0.3484101]
[1753819833879,0.57274839,117240.0,117230.0,1.0608101]
[1753819834174,0.57274839,117240.0,117230.0,0.3484101]
[1753819834378,0.58131176,117240.0,117230.0,0.2735501]
[1753819834682,0.58131176,117240.0,117230.0,1.0605701]
[1753819835672,0.58131176,117240.0,117230.0,0.2990701]
[1753819835873,0.58131176,117240.0,117230.0,1.0111501]
[1753819836071,0.58131176,117240.0,117230.0,1.0604901]
[1753819836581,0.23801839,117240.0,117230.0,1.53397151]
[1753819836882,0.23801839,117240.0,117230.0,1.65689591]
[1753819837083,0.51591839,117240.0,117230.0,1.231001]
[1753819838277,0.23801839,117240.0,117230.0,1.65677591]
[1753819838471,0.51591839,117240.0,117230.0,0.519041]
[1753819838675,0.51591839,117240.0,117230.0,1.231121]
[1753819840076,0.43434839,117240.0,117230.0,1.231001]
[1753819840269,0.57274839,117240.0,117230.0,1.231001]
[1753819840473,0.57274839,117240.0,117230.0,1.65677591]
[1753819840873,0.51591839,117240.0,117230.0,1.65677591]
[1753819841174,0.51591839,117240.0,117230.0,1.231001]
[1753819841486,0.51591839,117240.0,117230.0,1.65677591]
[1753819841782,0.51591839,117240.0,117230.0,1.231001]
[1753819841982,0.51591839,117240.0,117230.0,1.65677591]
[1753819842480,0.06740209,117240.0,117230.0,1.65677591]
[1753819842679,0.4182529,117250.0,117240.0,0.1706162]
[1753819842878,0.3484729,117250.0,117240.0,0.94280111]
[1753819843080,0.213266,117250.0,117240.0,0.81860111]
[1753819843284,0.213266,117250.0,117240.0,1.65436111]
[1753819843985,0.213266,117250.0,117240.0,1.2285862]
[1753819844179,0.261796,117250.0,117240.0,1.65436111]
[1753819845378,0.261796,117250.0,117240.0,1.71406111]
[1753819845579,0.261796,117250.0,117240.0,1.2882862]
[1753819845884,0.48037753,117250.0,117240.0,1.71406111]
[1753819846891,0.48037753,117250.0,117240.0,1.2882862]
[1753819847090,0.55953753,117250.0,117240.0,1.71406111]
[1753819847890,0.55953753,117250.0,117240.0,1.2882862]
[1753819848282,0.48037753,117250.0,117240.0,1.2882862]
[1753819848483,0.32941753,117250.0,117240.0,1.71406111]
[1753819849878,0.06762153,117250.0,117240.0,1.71406111]
[1753819850089,0.4250766,117260.0,117250.0,0.3052618]
[1753819850391,0.5771966,117260.0,117250.0,0.5004518]
[1753819850792,0.6348466,117260.0,117250.0,0.5004518]
[1753819850985,0.70320026,117260.0,117250.0,0.5004518]
[1753819851377,0.70420026,117260.0,117250.0,0.5004518]
[1753819851578,0.70420026,117260.0,117240.0,0.13758]
[1753819851781,0.5069018,117250.0,117240.0,0.3408]
[1753819851987,0.93267671,117250.0,117240.0,0.98268]
[1753819852393,0.5069018,117250.0,117240.0,0.98268]
[1753819853684,0.5069018,117250.0,117240.0,1.05124]
[1753819855292,0.5069018,117250.0,117240.0,1.05128]
[1753819857289,0.5069018,117250.0,117240.0,1.10003]
[1753819858389,0.5069018,117250.0,117240.0,0.38959]
[1753819859598,0.5069018,117250.0,117240.0,1.09927]
[1753819860198,0.80973259,117250.0,117240.0,0.05974]
[1753819860389,0.98031659,117250.0,117240.0,0.0262821]
[1753819860595,0.1706162,117240.0,117230.0,1e-07]
[1753819860794,0.1706162,117240.0,117230.0,0.63268089]
[1753819860795,0.2486162,117240.0,117230.0,0.63268089]
[1753819860994,0.2486162,117240.0,117230.0,1.34188089]
[1753819861194,0.2971462,117240.0,117230.0,1.34188089]
[1753819861396,0.4492662,117240.0,117230.0,1.2096809]
[1753819861795,0.4492662,117240.0,117230.0,1.2106809]
[1753819862297,0.1706162,117240.0,117230.0,0.80431169]
[1753819862506,0.2985726,117250.0,117240.0,0.3052763]
[1753819862705,0.4251026,117250.0,117240.0,0.63268079]
[1753819862998,0.5772226,117250.0,117240.0,1.03881]
[1753819863210,0.6348726,117250.0,117240.0,1.03881]
[1753819863397,0.6348726,117250.0,117240.0,0.2811]
[1753819863591,0.3062663,117240.0,117230.0,0.1366601]
[1753819863795,0.80974709,117240.0,117230.0,1.0387301]
[1753819864200,0.5069163,117240.0,117230.0,1.51219169]
[1753819864406,0.5069163,117240.0,117230.0,1.34156089]
[1753819864601,0.5069163,117240.0,117230.0,1.0387301]
[1753819864803,0.5069163,117240.0,117230.0,1.0397301]
[1753819865505,0.5069163,117240.0,117230.0,0.3308501]
[1753819865707,0.5069163,117240.0,117230.0,1.0404101]
[1753819865906,0.5069163,117240.0,117230.0,1.0414101]
[1753819867402,0.4277563,117240.0,117230.0,0.9926601]
[1753819867602,0.5069163,117240.0,117230.0,0.9926601]
[1753819867802,0.5069163,117240.0,117230.0,1.0414101]
[1753819869697,0.5069163,117240.0,117230.0,1.2120409]
[1753819869904,0.52745349,117240.0,117230.0,1.2110409]
[1753819870100,0.5089163,117240.0,117230.0,1.2110409]
[1753819870295,0.5089163,117240.0,117230.0,1.2100409]
[1753819870497,0.5109163,117240.0,117230.0,1.2100409]
[1753819870998,0.5109163,117240.0,117230.0,1.2100809]
[1753819871503,0.1746163,117240.0,117230.0,1.63598349]
[1753819872009,0.2231463,117240.0,117230.0,1.2100809]
[1753819872810,0.4512663,117240.0,117230.0,1.2100809]
[1753819873011,0.4502663,117240.0,117230.0,1.2100809]
[1753819873207,0.4512663,117240.0,117230.0,1.2100809]
[1753819874603,0.5089163,117240.0,117230.0,0.2125801]
[1753819874812,0.5089163,117240.0,117230.0,0.1337901]
[1753819875107,0.5089163,117240.0,117230.0,0.9872001]
[1753819875308,0.5089163,117240.0,117230.0,1.2057009]
[1753819875811,0.5079163,117240.0,117230.0,1.0350701]
[1753819876011,0.5089163,117240.0,117230.0,1.0350701]
[1753819876314,0.5089163,117240.0,117230.0,0.3275501]
[1753819876513,0.5099163,117240.0,117230.0,0.3275501]
[1753819876812,0.5109163,117240.0,117230.0,1.0349901]
[1753819878514,0.5109163,117240.0,117230.0,0.8403801]
[1753819878710,0.5109163,117240.0,117230.0,0.9187101]
[1753819878917,0.5109163,117240.0,117230.0,0.9871201]
[1753819879505,0.93681889,117240.0,117230.0,4.01e-05]
[1753819879711,0.9573327,117240.0,117230.0,1e-07]
[1753819880012,0.9583327,117240.0,117230.0,1e-07]
[1753819880419,0.9563327,117240.0,117230.0,1e-07]
[1753819880617,0.9603164,117240.0,117220.0,1e-07]
[1753819880811,0.4981554,117220.0,117210.0,0.2022]
[1753819881010,0.92405799,117220.0,117210.0,0.27968]
[1753819881522,0.92405799,117220.0,117210.0,0.13294]
[1753819881712,0.92405799,117220.0,117210.0,0.16479]
[1753819882709,0.92405799,117220.0,117210.0,0.2332]
[1753819882914,0.92705799,117220.0,117210.0,0.2332]
[1753819883116,0.92705799,117220.0,117210.0,4e-05]
[1753819883516,0.5011554,117220.0,117210.0,0.13379]
[1753819884417,0.92705799,117220.0,117210.0,0.13379]
[1753819884620,0.9475435,117220.0,117210.0,0.13379]
[1753819884924,0.82467949,117220.0,117210.0,0.27968]
[1753819885123,0.5001554,117220.0,117210.0,0.32755]
[1753819885828,0.5051554,117220.0,117210.0,0.32755]
[1753819886428,0.5031554,117220.0,117210.0,0.32755]
[1753819886731,0.5061554,117220.0,117210.0,0.32755]
[1753819886922,0.80919398,117220.0,117210.0,0.32755]
[1753819887422,0.5061554,117220.0,117210.0,0.32755]
[1753819887617,0.5011554,117220.0,117210.0,0.32755]
[1753819887819,0.80619398,117220.0,117210.0,0.32755]
[1753819888225,0.80819398,117220.0,117210.0,0.32755]
[1753819888421,0.80819398,117220.0,117210.0,0.21127]
[1753819888422,0.5051554,117220.0,117210.0,0.21127]
[1753819888619,0.5051554,117220.0,117210.0,0.27968]
[1753819888825,0.80819398,117220.0,117210.0,0.27968]
[1753819889026,0.1776454,117220.0,117210.0,0.32755]
[1753819889227,0.2226554,117220.0,117210.0,0.63058858]
[1753819889430,0.3031854,117220.0,117210.0,0.63058858]
[1753819889636,0.4481854,117220.0,117210.0,0.32755]
[1753819889934,0.5012354,117220.0,117210.0,0.32755]
[1753819890123,0.5022354,117220.0,117210.0,0.32755]
[1753819890735,0.4992354,117220.0,117210.0,0.32755]
[1753819892328,0.2899154,117220.0,117210.0,0.63058858]
[1753819892629,0.1279794,117230.0,117220.0,0.2489752]
[1753819892930,0.2986101,117230.0,117220.0,1.48142378]
[1753819893933,0.2996101,117230.0,117220.0,1.48142378]
[1753819894435,0.3006101,117230.0,117220.0,1.48142378]
[1753819894927,0.3006101,117230.0,117220.0,1.60420542]
[1753819895136,0.2579493,117230.0,117220.0,1.60420542]
[1753819895530,0.2579493,117230.0,117220.0,1.77482142]
[1753819895832,0.0873215,117230.0,117220.0,1.77482142]
[1753819896030,0.2579522,117230.0,117220.0,1.77482142]
[1753819896226,0.1279667,117240.0,117230.0,0.1706307]
[1753819896432,0.2559377,117240.0,117230.0,0.71134092]
[1753819897136,0.2132818,117240.0,117230.0,0.71134092]
[1753819897334,0.2142818,117240.0,117230.0,0.71134092]
[1753819897535,0.2152818,117240.0,117230.0,0.71134092]
[1753819898036,0.2152818,117240.0,117230.0,0.71138092]
[1753819898331,0.2152818,117240.0,117230.0,1.43146092]
[1753819898534,0.2152818,117240.0,117230.0,4e-05]
[1753819898535,0.90045202,117240.0,117230.0,4e-05]
[1753819898736,0.99010267,117240.0,117230.0,4e-05]
[1753819899031,0.4990052,117220.0,117210.0,0.83497]
[1753819899235,0.4990052,117220.0,117210.0,0.11493]
[1753819899432,0.4990052,117220.0,117210.0,4e-05]
[1753819899834,0.4990052,117220.0,117210.0,0.11493]
[1753819900238,0.4990052,117220.0,117210.0,0.11593]
[1753819900540,0.4299952,117220.0,117210.0,0.2885898]
[1753819901040,0.2156552,117220.0,117210.0,1.43433002]
[1753819903236,0.2156552,117220.0,117210.0,0.71441002]
[1753819903433,0.2156552,117220.0,117210.0,1.26395022]
[1753819903638,0.2156552,117220.0,117210.0,1.26639022]
[1753819904039,0.3312352,117220.0,117210.0,0.84404]
[1753819904341,0.5032852,117220.0,117210.0,0.84404]
[1753819905141,0.5032852,117220.0,117210.0,0.00304]
[1753819905338,0.92910542,117220.0,117210.0,0.72268]
[1753819905641,0.5032852,117220.0,117210.0,0.00304]
[1753819906230,0.5032852,117220.0,117210.0,0.00204]
[1753819906431,0.5042852,117220.0,117210.0,0.00204]
[1753819907037,0.5032852,117220.0,117210.0,0.00204]
[1753819907232,0.5052852,117220.0,117210.0,0.00204]
[1753819907839,0.5052852,117220.0,117210.0,4e-05]
[1753819908031,0.5072852,117220.0,117210.0,4e-05]
[1753819910036,0.5072852,117220.0,117210.0,0.00248]
[1753819910542,0.5072852,117220.0,117210.0,0.06905]
[1753819910843,0.5072852,117220.0,117210.0,4e-05]
[1753819912541,0.52794361,117220.0,117210.0,4e-05]
[1753819913637,0.5057096,117210.0,117200.0,0.005]
[1753819913836,0.93152982,117210.0,117200.0,0.005]
[1753819915044,0.93352982,117210.0,117200.0,0.005]
[1753819915541,0.52836234,117210.0,117200.0,0.00744]
[1753819915737,0.52836234,117210.0,117200.0,0.07401]
[1753819916133,0.52836234,117210.0,117200.0,0.00744]
[1753819916735,0.52836234,117210.0,117200.0,0.11858]
[1753819917534,0.5077096,117210.0,117200.0,0.11858]
[1753819917845,0.5077096,117210.0,117200.0,0.12249]
[1753819918242,0.5077096,117210.0,117200.0,0.71898452]
[1753819918641,0.5077096,117210.0,117200.0,0.54831022]
[1753819918642,0.5067096,117210.0,117200.0,0.54831022]
[1753819919039,0.5057096,117210.0,117200.0,0.54831022]
[1753819919345,0.5057096,117210.0,117200.0,0.71898452]
[1753819919545,0.5057096,117210.0,117200.0,0.71998452]
[1753819920849,0.5057096,117210.0,117200.0,0.72198452]
[1753819921148,0.5057096,117210.0,117200.0,0.72198442]
[1753819922050,0.5057096,117210.0,117200.0,0.72098442]
[1753819922244,0.5057096,117210.0,117200.0,0.72298442]
[1753819922442,0.2503496,117210.0,117200.0,0.72298442]
[1753819922946,0.2503496,117210.0,117200.0,0.72098442]
[1753819923251,0.2503496,117210.0,117200.0,0.72198442]
[1753819923847,0.3020196,117210.0,117200.0,0.72198442]
[1753819924144,0.2187096,117210.0,117200.0,0.72198442]
[1753819924343,0.2187096,117210.0,117200.0,0.71998442]
[1753819924549,0.2187096,117210.0,117200.0,0.72198442]
[1753819924950,0.2187096,117210.0,117200.0,0.72102442]
[1753819925747,0.2187096,117210.0,117200.0,0.72002442]
[1753819925953,0.5910331,117220.0,117210.0,0.2881498]
[1753819926146,0.5910331,117220.0,117210.0,0.11749]
[1753819926449,0.5910331,117220.0,117200.0,0.00604]
[1753819926450,0.4576597,117210.0,117200.0,0.00604]
[1753819926651,0.5057097,117210.0,117200.0,0.00604]
[1753819928543,0.5077097,117210.0,117200.0,0.00604]
[1753819929357,0.5077097,117210.0,117200.0,0.00504]
[1753819933655,0.5087097,117210.0,117200.0,0.00504]
[1753819934152,0.5293469,117210.0,117200.0,0.00504]
[1753819934452,0.5087097,117210.0,117200.0,0.00504]
[1753819934652,0.52934738,117210.0,117200.0,0.00504]
[1753819935154,0.52834738,117210.0,117200.0,0.37617511]
[1753819935354,0.52734738,117210.0,117200.0,0.37617511]
[1753819936447,0.52734738,117210.0,117200.0,0.30805511]
[1753819936750,0.52734738,117210.0,117200.0,0.00504]
[1753819936948,0.52734738,117210.0,117200.0,0.30805511]
[1753819937455,0.52634738,117210.0,117200.0,0.30805511]
[1753819937653,0.52734738,117210.0,117200.0,0.30805511]
[1753819940047,0.52734738,117210.0,117200.0,0.07316]
[1753819940649,0.52734738,117210.0,117200.0,0.37617511]
[1753819941651,0.52734738,117210.0,117200.0,0.11861]
[1753819941845,0.5067097,117210.0,117200.0,0.52417941]
[1753819942043,0.5057097,117210.0,117200.0,0.11861]
[1753819942248,0.5067097,117210.0,117200.0,0.42162511]
[1753819942451,0.5067097,117210.0,117200.0,0.59229941]
[1753819942958,0.5067097,117210.0,117200.0,0.42162511]
[1753819943160,0.5067097,117210.0,117200.0,0.11861]
[1753819943355,0.5067097,117210.0,117200.0,0.42162511]
[1753819944259,0.5067097,117210.0,117200.0,0.05049]
[1753819944446,0.80972481,117210.0,117200.0,0.00504]
[1753819945162,0.5067097,117210.0,117200.0,0.00504]
[1753819945358,0.80972481,117210.0,117200.0,0.00504]
[1753819945861,0.5067097,117210.0,117200.0,0.00504]
[1753819946862,0.83041965,117210.0,117200.0,0.00504]
[1753819948763,1.23888454,117210.0,117200.0,0.00504]
[1753819949456,1.54189965,117210.0,117200.0,0.00504]
[1753819950368,1.23888454,117210.0,117200.0,0.00504]
[1753819950567,1.54189965,117210.0,117200.0,0.00504]
[1753819951369,1.5418984,117210.0,117200.0,0.00504]
[1753819951864,0.8304184,117210.0,117200.0,0.00504]
[1753819952073,1.23856329,117210.0,117200.0,0.00504]
[1753819952257,1.2178697,117210.0,117200.0,0.00504]
[1753819952463,1.23856384,117210.0,117200.0,0.00504]
[1753819952765,0.3237997,117210.0,117200.0,0.59229941]
[1753819952973,0.5089697,117210.0,117200.0,0.59229941]
[1753819954174,0.5079697,117210.0,117200.0,0.59429941]
[1753819954968,0.3550297,117210.0,117200.0,0.59429941]
[1753819955472,0.4391897,117210.0,117200.0,0.2912843]
[1753819955684,0.5079697,117210.0,117200.0,0.59429941]
[1753819957097,0.04805,117210.0,117200.0,1.30433941]
[1753819957387,0.04805,117210.0,117200.0,1.60735452]
[1753819957592,0.04805,117210.0,117200.0,1.30433941]
[1753819959288,0.2156452,117220.0,117210.0,0.2161097]
[1753819959488,0.2156452,117220.0,117210.0,0.58724481]
[1753819959886,0.2998052,117220.0,117210.0,0.58724481]
[1753819960393,0.3320352,117220.0,117210.0,0.58724481]
[1753819960690,0.3887552,117220.0,117210.0,0.58724481]
[1753819960887,0.5049052,117220.0,117210.0,0.58724481]
[1753819963691,0.5049052,117220.0,117210.0,0.58824481]
[1753819965186,0.5059052,117220.0,117210.0,0.58824481]
[1753819965676,0.5059052,117220.0,117210.0,0.1141]
[1753819965881,0.5059052,117220.0,117210.0,0.8219]
[1753819966386,0.5059052,117220.0,117210.0,0.001]
[1753819966592,0.80892031,117220.0,117210.0,0.001]
[1753819966886,0.1706597,117210.0,117200.0,0.9261795]
[1753819967088,0.4897097,117210.0,117200.0,1.0392795]
[1753819967291,0.4897097,117210.0,117200.0,1.34229461]
[1753819968289,0.4897097,117210.0,117200.0,1.34329461]
[1753819968989,0.4897097,117210.0,117200.0,1.34429461]
[1753819969183,0.4907097,117210.0,117200.0,1.34329461]
[1753819969584,0.4907097,117210.0,117200.0,1.34229461]
[1753819970186,0.4907097,117210.0,117200.0,1.0392795]
[1753819970387,0.4907097,117210.0,117200.0,1.34229461]
[1753819971888,0.4907097,117210.0,117200.0,0.42115511]
[1753819972094,0.79372481,117210.0,117200.0,0.00504]
[1753819972991,0.4907097,117210.0,117200.0,0.00504]
[1753819974490,0.4907097,117210.0,117200.0,0.11814]
[1753819975188,0.4907097,117210.0,117200.0,0.2210043]
[1753819975393,0.4907097,117210.0,117200.0,0.59182941]
[1753819978596,0.2977797,117210.0,117200.0,0.59182941]
[1753819979200,0.2174497,117210.0,117200.0,0.59182941]
[1753819979800,0.2174497,117210.0,117200.0,0.59282941]
[1753819980193,0.04679,117210.0,117200.0,0.59282941]
[1753819980900,0.001,117210.0,117200.0,0.76346941]
[1753819981399,0.322809,117220.0,117210.0,0.2837597]
[1753819981593,0.322809,117220.0,117210.0,1.29285481]
[1753819981994,0.368599,117220.0,117210.0,1.29285481]
[1753819982195,0.309695,117220.0,117210.0,1.29285481]
[1753819982396,0.368599,117220.0,117210.0,1.29285481]
[1753819982604,0.418859,117220.0,117210.0,1.29385481]
[1753819982803,0.532359,117220.0,117210.0,1.29485481]
[1753819983002,0.16912,117220.0,117210.0,1.29485481]
[1753819983200,0.4618494,117230.0,117220.0,0.2837452]
[1753819983403,0.48237747,117230.0,117220.0,0.58676031]
[1753819983600,0.55287747,117230.0,117220.0,0.58676031]
[1753819984406,0.55387747,117230.0,117220.0,0.58676031]
[1753819985201,0.55387875,117230.0,117220.0,0.58676031]
[1753819985400,0.5333494,117230.0,117220.0,0.58676031]
[1753819985606,0.5333494,117230.0,117220.0,0.58776031]
[1753819985809,0.55387809,117230.0,117220.0,0.58776031]
[1753819986005,0.55287809,117230.0,117220.0,0.58876031]
[1753819986608,0.5323494,117230.0,117220.0,0.58876031]
[1753819987603,0.5323494,117230.0,117220.0,1.12311511]
[1753819988004,0.83536451,117230.0,117220.0,0.70652]
[1753819988310,0.5323494,117230.0,117220.0,0.70652]
[1753819988806,0.5323494,117230.0,117220.0,0.77433]
[1753819989007,0.5323494,117230.0,117220.0,0.81962]
[1753819989207,0.5333494,117230.0,117220.0,0.81862]
[1753819989505,0.5333494,117230.0,117220.0,0.81762]
[1753819989703,0.5343494,117230.0,117220.0,0.81762]
[1753819990506,0.5343494,117230.0,117220.0,0.81758]
[1753819990702,0.4192097,117210.0,117200.0,0.00504]
[1753819990906,0.4192097,117210.0,117200.0,0.77717]
[1753819990907,0.4897097,117210.0,117200.0,0.77717]
[1753819991207,0.4897097,117210.0,117200.0,0.82246]
[1753819991712,0.4897097,117210.0,117200.0,1.12547511]
[1753819992012,0.4897097,117210.0,117200.0,1.12747511]
[1753819992212,0.4897097,117210.0,117200.0,1.12947511]
[1753819993713,0.4897097,117210.0,117200.0,1.12747511]
[1753819994414,0.4897097,117210.0,117200.0,1.12547511]
[1753819994615,0.4907097,117210.0,117200.0,1.12547511]
[1753819998218,0.4907097,117210.0,117200.0,0.82246]
[1753819998420,0.4907097,117210.0,117200.0,1.12547511]
[1753819999022,0.79372481,117210.0,117200.0,0.70852]
[1753819999318,0.4907097,117210.0,117200.0,0.70852]
[1753820000916,0.4907097,117210.0,117200.0,0.77489]
[1753820001121,0.4907097,117210.0,117200.0,0.82001]
[1753820001620,0.4907097,117210.0,117200.0,1.12302511]
[1753820001818,0.4907097,117210.0,117200.0,0.11649]
[1753820002018,0.4907097,117210.0,117200.0,0.81997]
[1753820002620,0.79372481,117210.0,117200.0,0.11649]
[1753820002923,0.79372481,117210.0,117200.0,0.70852]
[1753820003120,0.4907097,117210.0,117200.0,0.70852]
[1753820003923,0.4907097,117210.0,117200.0,0.75364]
[1753820004126,0.4907097,117210.0,117200.0,0.81997]
[1753820004717,0.4907097,117210.0,117200.0,0.11649]
[1753820004918,0.4907097,117210.0,117200.0,0.82001]
[1753820005119,0.4907097,117210.0,117200.0,0.70856]
[1753820005320,0.4907097,117210.0,117200.0,0.82001]
[1753820007424,0.4907097,117210.0,117200.0,0.00504]
[1753820007615,0.79372481,117210.0,117200.0,0.00504]
[1753820007821,0.4907097,117210.0,117200.0,0.70856]
[1753820008116,0.279284,117240.0,117230.0,0.1706308]
[1753820008426,0.3255,117240.0,117230.0,0.67040881]
[1753820008822,0.04977,117240.0,117230.0,0.67040881]
[1753820009023,0.75329,117240.0,117230.0,0.67040881]
[1753820009526,0.75529,117240.0,117230.0,0.67040881]
[1753820009825,0.05277,117240.0,117230.0,0.73978905]
[1753820010021,0.75621,117240.0,117230.0,0.73978905]
[1753820010225,0.75421,117240.0,117230.0,0.74078905]
[1753820010422,1.2005562,117240.0,117230.0,0.43777394]
[1753820010928,1.2005562,117240.0,117230.0,0.74078905]
[1753820011124,1.1995562,117240.0,117230.0,0.43877394]
[1753820011320,1.02894,117240.0,117230.0,0.74178905]
[1753820011630,1.1995562,117240.0,117230.0,0.74078905]
[1753820011832,1.1995562,117240.0,117230.0,0.74278905]
[1753820012032,1.1995562,117240.0,117230.0,0.39711674]
[1753820012033,0.4961162,117240.0,117230.0,0.39711674]
[1753820012335,1.1995562,117240.0,117230.0,0.39511674]
[1753820012726,1.1207362,117240.0,117200.0,0.30805511]
[1753820012926,0.79917501,117210.0,117200.0,0.00504]
[1753820013130,1.50261501,117210.0,117200.0,0.00504]
[1753820014837,1.50261501,117210.0,117200.0,0.00904]
[1753820015432,1.50361501,117210.0,117200.0,0.00504]
[1753820015639,1.50461501,117210.0,117200.0,0.00504]
[1753820015935,1.2020399,117210.0,117200.0,0.20997]
[1753820016135,1.2015999,117210.0,117200.0,0.32142]
[1753820017733,1.2015999,117210.0,117200.0,0.4920945]
[1753820019340,1.2015999,117210.0,117200.0,0.32142]
[1753820020838,0.3290452,117240.0,117230.0,0.1706308]
[1753820021035,0.34595818,117240.0,117230.0,0.79002591]
[1753820021436,0.83628818,117240.0,117230.0,0.79002591]
[1753820021633,0.80275818,117240.0,117230.0,0.79002591]